[Event "GrandPrix_30.05"]
[Site "Chess.com"]
[Date "2020.05.30"]
[Round "5"]
[White "Vuk2000"]
[Black "Sergey_Krivenko"]
[Result "1/2-1/2"]
[WhiteElo "2195"]
[BlackElo "2085"]
[TimeControl "600+2"]
[EndTime "10:24:30 PDT"]
[Termination "Game drawn - insufficient material"]

1. e4 {[%clk 0:10:01.9]} 1... e6 {[%clk 0:09:59.9]} 2. d4 {[%clk 0:10:02.4]}
2... d5 {[%clk 0:09:59.1]} 3. Nc3 {[%clk 0:10:02.7]} 3... Bb4 {[%clk 0:09:58.6]}
4. e5 {[%clk 0:10:03.1]} 4... Ne7 {[%clk 0:09:58.4]} 5. a3 {[%clk 0:10:03.4]}
5... Bxc3+ {[%clk 0:09:59]} 6. bxc3 {[%clk 0:10:04.9]} 6... b6 {[%clk
0:10:00.3]} 7. Qg4 {[%clk 0:10:02.9]} 7... Ng6 {[%clk 0:10:00.1]} 8. h4 {[%clk
0:09:59.3]} 8... h5 {[%clk 0:10:00.3]} 9. Qg3 {[%clk 0:09:57.8]} 9... Ba6 {[%clk
0:10:01.3]} 10. Ne2 {[%clk 0:09:58.4]} 10... Qd7 {[%clk 0:09:45.2]} 11. Nf4
{[%clk 0:09:14.4]} 11... Nxf4 {[%clk 0:09:40.2]} 12. Bxf4 {[%clk 0:09:15]} 12...
g6 {[%clk 0:09:24]} 13. Bxa6 {[%clk 0:09:07.7]} 13... Nxa6 {[%clk 0:09:25.9]}
14. Qd3 {[%clk 0:09:08.5]} 14... Qa4 {[%clk 0:07:16.9]} 15. Bg5 {[%clk
0:09:07.7]} 15... Nb8 {[%clk 0:06:57.4]} 16. Bf6 {[%clk 0:09:04.6]} 16... Rg8
{[%clk 0:06:39.8]} 17. g4 {[%clk 0:09:04.7]} 17... Nd7 {[%clk 0:05:28.3]} 18.
Bg5 {[%clk 0:09:01.1]} 18... Rh8 {[%clk 0:05:07.6]} 19. f3 {[%clk 0:08:55.1]}
19... Rc8 {[%clk 0:04:57.8]} 20. Kd2 {[%clk 0:08:17.6]} 20... c5 {[%clk
0:04:35.5]} 21. Rhb1 {[%clk 0:08:17]} 21... Kf8 {[%clk 0:03:12.8]} 22. Qb5
{[%clk 0:08:04.9]} 22... Qxb5 {[%clk 0:03:08.7]} 23. Rxb5 {[%clk 0:08:06.8]}
23... Kg7 {[%clk 0:03:01.3]} 24. a4 {[%clk 0:07:58.3]} 24... hxg4 {[%clk
0:02:53.2]} 25. fxg4 {[%clk 0:07:58.4]} 25... f6 {[%clk 0:02:53.9]} 26. exf6+
{[%clk 0:07:43.2]} 26... Nxf6 {[%clk 0:02:55.8]} 27. Bxf6+ {[%clk 0:06:44.6]}
27... Kxf6 {[%clk 0:02:57.7]} 28. g5+ {[%clk 0:06:33.8]} 28... Kf5 {[%clk
0:02:33.9]} 29. Rf1+ {[%clk 0:06:29.7]} 29... Kg4 {[%clk 0:02:35.1]} 30. Rg1+
{[%clk 0:06:29.9]} 30... Kh5 {[%clk 0:02:31.5]} 31. a5 {[%clk 0:06:25.1]} 31...
cxd4 {[%clk 0:02:26.6]} 32. cxd4 {[%clk 0:06:24.5]} 32... Rhf8 {[%clk
0:02:22.4]} 33. Rg2 {[%clk 0:06:07.8]} 33... Rf4 {[%clk 0:02:11.6]} 34. axb6
{[%clk 0:06:07.7]} 34... Rxd4+ {[%clk 0:02:09]} 35. Kc1 {[%clk 0:06:05.8]} 35...
axb6 {[%clk 0:02:05.3]} 36. Rxb6 {[%clk 0:06:07.7]} 36... Rxh4 {[%clk
0:01:55.9]} 37. Rxe6 {[%clk 0:06:03.8]} 37... d4 {[%clk 0:01:47.5]} 38. Rd6
{[%clk 0:05:57.1]} 38... Rc4 {[%clk 0:01:40.8]} 39. Kd2 {[%clk 0:05:48.3]} 39...
Rc5 {[%clk 0:01:37.7]} 40. Rd7 {[%clk 0:04:28.6]} 40... Rg4 {[%clk 0:01:34.5]}
41. Rxg4 {[%clk 0:04:26.6]} 41... Kxg4 {[%clk 0:01:36.4]} 42. Rxd4+ {[%clk
0:04:25.6]} 42... Kxg5 {[%clk 0:01:37.5]} 43. c4 {[%clk 0:04:14.5]} 43... Kf5
{[%clk 0:01:34.6]} 44. Kd3 {[%clk 0:04:09.3]} 44... g5 {[%clk 0:01:32.3]} 45.
Rd8 {[%clk 0:04:10.6]} 45... Rc7 {[%clk 0:01:25]} 46. Kd4 {[%clk 0:04:06]} 46...
Rg7 {[%clk 0:01:16.1]} 47. Kd5 {[%clk 0:04:04.5]} 47... g4 {[%clk 0:01:11]} 48.
Rf8+ {[%clk 0:04:04.6]} 48... Kg5 {[%clk 0:01:10.9]} 49. Ke4 {[%clk 0:03:48.4]}
49... Re7+ {[%clk 0:01:02.7]} 50. Kd5 {[%clk 0:03:45]} 50... g3 {[%clk
0:00:59.6]} 51. Rg8+ {[%clk 0:03:44.2]} 51... Kf4 {[%clk 0:00:59.3]} 52. c5
{[%clk 0:03:44.6]} 52... Re5+ {[%clk 0:00:55.3]} 53. Kd6 {[%clk 0:03:45]} 53...
Rg5 {[%clk 0:00:50.6]} 54. Rxg5 {[%clk 0:03:23.6]} 54... Kxg5 {[%clk 0:00:52.5]}
55. c6 {[%clk 0:03:24.6]} 55... g2 {[%clk 0:00:52.7]} 56. c7 {[%clk 0:03:26.5]}
56... g1=Q {[%clk 0:00:53]} 57. c8=Q {[%clk 0:03:26.2]} 57... Qd4+ {[%clk
0:00:52.5]} 58. Kc7 {[%clk 0:03:25.6]} 58... Qc5+ {[%clk 0:00:51.8]} 59. Kb8
{[%clk 0:03:25.9]} 59... Qxc8+ {[%clk 0:00:53.7]} 60. Kxc8 {[%clk 0:03:26.1]}
1/2-1/2

[Event "GrandPrix_30.05"]
[Site "Chess.com"]
[Date "2020.05.30"]
[Round "5"]
[White "Gareth-Bale11"]
[Black "switlave"]
[Result "1-0"]
[WhiteElo "2478"]
[BlackElo "2236"]
[TimeControl "600+2"]
[EndTime "10:24:34 PDT"]
[Termination "Gareth-Bale11 won by resignation"]

1. Nf3 {[%clk 0:09:59.3]} 1... Nf6 {[%clk 0:07:59.5]} 2. c4 {[%clk 0:09:58.2]}
2... g6 {[%clk 0:07:57.1]} 3. Nc3 {[%clk 0:09:56.8]} 3... d5 {[%clk 0:07:57.8]}
4. cxd5 {[%clk 0:09:56.9]} 4... Nxd5 {[%clk 0:07:59.3]} 5. Qb3 {[%clk
0:09:58.6]} 5... Nb6 {[%clk 0:07:57]} 6. d4 {[%clk 0:09:59.3]} 6... Bg7 {[%clk
0:07:57.5]} 7. e4 {[%clk 0:09:38.3]} 7... O-O {[%clk 0:07:50.4]} 8. Be3 {[%clk
0:09:37.5]} 8... Bg4 {[%clk 0:07:46.3]} 9. Rd1 {[%clk 0:09:37.1]} 9... Nc6
{[%clk 0:07:44.1]} 10. d5 {[%clk 0:09:38.2]} 10... Ne5 {[%clk 0:07:44.2]} 11.
Be2 {[%clk 0:09:39.2]} 11... Qd6 {[%clk 0:07:07.5]} 12. h3 {[%clk 0:09:17.6]}
12... Nxf3+ {[%clk 0:07:07.7]} 13. gxf3 {[%clk 0:09:19.5]} 13... Bh5 {[%clk
0:07:09]} 14. a4 {[%clk 0:08:52.2]} 14... a5 {[%clk 0:06:38.6]} 15. Nb5 {[%clk
0:08:44.3]} 15... Qb4+ {[%clk 0:03:48]} 16. Qxb4 {[%clk 0:08:43.6]} 16... axb4
{[%clk 0:03:49.5]} 17. Nxc7 {[%clk 0:07:26.7]} 17... Nxa4 {[%clk 0:03:49.8]} 18.
Nxa8 {[%clk 0:07:26.5]} 18... Rxa8 {[%clk 0:03:46.1]} 19. f4 {[%clk 0:06:51.8]}
19... Bxe2 {[%clk 0:03:19.3]} 20. Kxe2 {[%clk 0:06:53.7]} 20... Bxb2 {[%clk
0:03:17.5]} 21. Kd3 {[%clk 0:06:35.2]} 21... Nc3 {[%clk 0:02:22.1]} 22. Rd2
{[%clk 0:06:28]} 22... Ba3 {[%clk 0:02:14.4]} 23. Ra1 {[%clk 0:06:23.1]} 23...
f5 {[%clk 0:01:57.5]} 24. f3 {[%clk 0:06:22.4]} 24... Kf7 {[%clk 0:01:34.7]} 25.
Rc2 {[%clk 0:06:09]} 25... e6 {[%clk 0:01:21.8]} 26. d6 {[%clk 0:05:38.6]} 26...
fxe4+ {[%clk 0:01:17.7]} 27. fxe4 {[%clk 0:05:39.8]} 27... e5 {[%clk 0:01:18.6]}
28. Bc5 {[%clk 0:05:29.9]} 28... Na4 {[%clk 0:01:09.6]} 29. fxe5 {[%clk
0:05:01.5]} 29... b3 {[%clk 0:01:06]} 30. Bxa3 {[%clk 0:04:50.3]} 30... bxc2
{[%clk 0:01:06.6]} 31. Rf1+ {[%clk 0:03:28.4]} 31... Ke6 {[%clk 0:01:01.8]} 32.
Kd4 {[%clk 0:03:29.5]} 32... Nc3 {[%clk 0:00:41.4]} 33. Rf6+ {[%clk 0:03:21.3]}
33... Kd7 {[%clk 0:00:42.4]} 34. Rf7+ {[%clk 0:03:12.8]} 34... Ke8 {[%clk
0:00:43.5]} 35. Re7+ {[%clk 0:03:04.8]} 35... Kd8 {[%clk 0:00:44.1]} 36. Kxc3
{[%clk 0:02:53.2]} 36... Rxa3+ {[%clk 0:00:36.9]} 37. Kxc2 {[%clk 0:02:54.2]}
37... Re3 {[%clk 0:00:30.2]} 38. Kd2 {[%clk 0:02:54.3]} 38... Rxe4 {[%clk
0:00:31.3]} 39. Kd3 {[%clk 0:02:55.6]} 39... Re1 {[%clk 0:00:29.1]} 40. Kd4
{[%clk 0:02:56.6]} 40... b5 {[%clk 0:00:23]} 41. Kd5 {[%clk 0:02:37.1]} 41... b4
{[%clk 0:00:20]} 42. Rb7 {[%clk 0:02:35.8]} 1-0

[Event "GrandPrix_30.05"]
[Site "Chess.com"]
[Date "2020.05.30"]
[Round "5"]
[White "Bacyanide"]
[Black "ZefirKa"]
[Result "1-0"]
[WhiteElo "2458"]
[BlackElo "2126"]
[TimeControl "600+2"]
[EndTime "10:24:40 PDT"]
[Termination "Bacyanide won by resignation"]

1. d4 {[%clk 0:10:01.9]} 1... d5 {[%clk 0:10:00.1]} 2. Nf3 {[%clk 0:10:02.5]}
2... a6 {[%clk 0:09:59.8]} 3. Bf4 {[%clk 0:10:01.5]} 3... Nf6 {[%clk 0:09:54.4]}
4. e3 {[%clk 0:10:00.4]} 4... Bf5 {[%clk 0:09:34.1]} 5. c4 {[%clk 0:09:51.8]}
5... e6 {[%clk 0:09:22.4]} 6. Nc3 {[%clk 0:09:30]} 6... Bd6 {[%clk 0:09:03.5]}
7. Bxd6 {[%clk 0:07:43.1]} 7... Qxd6 {[%clk 0:08:51.9]} 8. Qb3 {[%clk
0:06:20.5]} 8... b6 {[%clk 0:08:06.5]} 9. cxd5 {[%clk 0:06:18.2]} 9... exd5
{[%clk 0:08:04.5]} 10. Be2 {[%clk 0:06:17.7]} 10... Nbd7 {[%clk 0:07:53.4]} 11.
O-O {[%clk 0:06:17.9]} 11... O-O {[%clk 0:07:49.6]} 12. Rac1 {[%clk 0:06:14]}
12... b5 {[%clk 0:07:19.5]} 13. Qd1 {[%clk 0:05:55.8]} 13... Bg4 {[%clk
0:06:20.6]} 14. Ne1 {[%clk 0:05:46.5]} 14... Bxe2 {[%clk 0:06:16.6]} 15. Nxe2
{[%clk 0:05:40.2]} 15... c5 {[%clk 0:05:56.6]} 16. dxc5 {[%clk 0:05:35.9]} 16...
Nxc5 {[%clk 0:05:58.5]} 17. Ng3 {[%clk 0:05:23.4]} 17... Rac8 {[%clk 0:05:49.6]}
18. Nf3 {[%clk 0:05:13.9]} 18... h6 {[%clk 0:05:25.2]} 19. Qe2 {[%clk
0:05:03.3]} 19... g6 {[%clk 0:04:56.6]} 20. Rfd1 {[%clk 0:05:03.8]} 20... Qe7
{[%clk 0:04:49.5]} 21. Nd4 {[%clk 0:04:57.6]} 21... Nce4 {[%clk 0:04:36.1]} 22.
Nxe4 {[%clk 0:04:39.4]} 22... dxe4 {[%clk 0:04:37]} 23. h3 {[%clk 0:04:10.5]}
23... Kg7 {[%clk 0:04:19.9]} 24. a4 {[%clk 0:04:09.9]} 24... bxa4 {[%clk
0:04:19.8]} 25. Qxa6 {[%clk 0:04:10.1]} 25... Rxc1 {[%clk 0:04:20.6]} 26. Rxc1
{[%clk 0:04:11.1]} 26... Qb4 {[%clk 0:04:09.9]} 27. Rc7 {[%clk 0:03:26.8]} 27...
Re8 {[%clk 0:01:46.7]} 28. Qa7 {[%clk 0:02:39.2]} 28... Qe1+ {[%clk 0:01:42.3]}
29. Kh2 {[%clk 0:02:39.6]} 29... Qxf2 {[%clk 0:01:42]} 30. Rxf7+ {[%clk
0:02:39.6]} 30... Kg8 {[%clk 0:01:27.6]} 31. Rg7+ {[%clk 0:02:17.5]} 31... Kh8
{[%clk 0:01:28.7]} 32. Rxg6 {[%clk 0:02:08]} 32... Nh5 {[%clk 0:00:39.1]} 33.
Rxh6+ {[%clk 0:01:41.2]} 33... Kg8 {[%clk 0:00:38.7]} 34. Qh7+ {[%clk
0:01:39.3]} 34... Kf8 {[%clk 0:00:39.8]} 35. Rxh5 {[%clk 0:01:36.4]} 1-0

[Event "GrandPrix_30.05"]
[Site "Chess.com"]
[Date "2020.05.30"]
[Round "5"]
[White "Rakhmanov_Aleksandr"]
[Black "NikolaGry"]
[Result "0-1"]
[WhiteElo "2378"]
[BlackElo "2199"]
[TimeControl "600+2"]
[EndTime "10:24:48 PDT"]
[Termination "NikolaGry won by resignation"]

1. d4 {[%clk 0:10:01.9]} 1... d5 {[%clk 0:09:59.5]} 2. c4 {[%clk 0:10:02.5]}
2... Nc6 {[%clk 0:10:00.2]} 3. e3 {[%clk 0:10:01.4]} 3... e6 {[%clk 0:09:57.8]}
4. Nc3 {[%clk 0:10:01]} 4... Nf6 {[%clk 0:09:57.8]} 5. Nf3 {[%clk 0:10:01.3]}
5... Bb4 {[%clk 0:09:53.6]} 6. Bd2 {[%clk 0:10:02.3]} 6... dxc4 {[%clk
0:09:41.5]} 7. Bxc4 {[%clk 0:10:01.9]} 7... O-O {[%clk 0:09:20.8]} 8. O-O {[%clk
0:09:57.8]} 8... a6 {[%clk 0:09:08.2]} 9. a3 {[%clk 0:09:55.9]} 9... Bd6 {[%clk
0:09:08.2]} 10. Qc2 {[%clk 0:09:45.2]} 10... e5 {[%clk 0:09:06]} 11. h3 {[%clk
0:09:29.4]} 11... Bd7 {[%clk 0:08:39.4]} 12. Rad1 {[%clk 0:09:25.6]} 12... Qe7
{[%clk 0:08:27.2]} 13. Ng5 {[%clk 0:08:51.6]} 13... g6 {[%clk 0:07:59.8]} 14. d5
{[%clk 0:08:45.1]} 14... Nd8 {[%clk 0:07:27.6]} 15. f4 {[%clk 0:08:39.7]} 15...
b5 {[%clk 0:06:14.9]} 16. Bd3 {[%clk 0:06:30.7]} 16... Nb7 {[%clk 0:05:59.6]}
17. b4 {[%clk 0:06:30.8]} 17... Rae8 {[%clk 0:05:26.3]} 18. f5 {[%clk
0:06:19.4]} 18... e4 {[%clk 0:04:32.4]} 19. Ngxe4 {[%clk 0:06:15]} 19... Nxe4
{[%clk 0:04:14.1]} 20. Bxe4 {[%clk 0:06:16.9]} 20... Qe5 {[%clk 0:03:40.3]} 21.
Rf3 {[%clk 0:05:54.2]} 21... Qh2+ {[%clk 0:03:21.3]} 22. Kf2 {[%clk 0:05:38]}
22... Be5 {[%clk 0:03:19.9]} 23. Bd3 {[%clk 0:04:21.6]} 23... gxf5 {[%clk
0:02:44.9]} 24. Bxf5 {[%clk 0:04:18]} 24... Bxf5 {[%clk 0:02:40.6]} 25. Qxf5
{[%clk 0:04:19.9]} 25... Nd6 {[%clk 0:02:38.2]} 26. Qg4+ {[%clk 0:01:31.7]}
26... Kh8 {[%clk 0:02:36.3]} 27. Ke2 {[%clk 0:01:33.2]} 27... Rg8 {[%clk
0:02:23.1]} 28. Qh4 {[%clk 0:01:33.3]} 28... Rxg2+ {[%clk 0:01:58.4]} 29. Rf2
{[%clk 0:01:09.9]} 29... Nf5 {[%clk 0:01:43.5]} 30. Rxg2 {[%clk 0:00:05.6]}
30... Qxg2+ {[%clk 0:01:42.2]} 31. Qf2 {[%clk 0:00:07.2]} 31... Ng3+ {[%clk
0:01:41.7]} 0-1

[Event "GrandPrix_30.05"]
[Site "Chess.com"]
[Date "2020.05.30"]
[Round "5"]
[White "KruHor"]
[Black "Bosiocic"]
[Result "1/2-1/2"]
[WhiteElo "2471"]
[BlackElo "2687"]
[TimeControl "600+2"]
[EndTime "10:24:50 PDT"]
[Termination "Game drawn by agreement"]

1. d4 {[%clk 0:09:59.8]} 1... d6 {[%clk 0:10:00.8]} 2. Nf3 {[%clk 0:09:56.5]}
2... Nf6 {[%clk 0:09:59.2]} 3. c4 {[%clk 0:09:53.8]} 3... g6 {[%clk 0:10:00.5]}
4. Nc3 {[%clk 0:09:53.8]} 4... Bf5 {[%clk 0:10:01.5]} 5. d5 {[%clk 0:09:51.1]}
5... Bg7 {[%clk 0:10:00.7]} 6. Nd4 {[%clk 0:09:50.6]} 6... Bd7 {[%clk
0:10:01.2]} 7. e4 {[%clk 0:09:51]} 7... O-O {[%clk 0:10:01]} 8. Be2 {[%clk
0:09:51.2]} 8... c5 {[%clk 0:09:50.3]} 9. Nc2 {[%clk 0:09:38.9]} 9... Na6 {[%clk
0:09:35.5]} 10. O-O {[%clk 0:09:30.3]} 10... Nc7 {[%clk 0:09:24.9]} 11. a4
{[%clk 0:09:05]} 11... b6 {[%clk 0:09:26]} 12. Bf4 {[%clk 0:09:03.4]} 12... a6
{[%clk 0:09:25.4]} 13. Qd2 {[%clk 0:08:42.8]} 13... Bh8 {[%clk 0:09:19.8]} 14.
h3 {[%clk 0:08:17.5]} 14... Rb8 {[%clk 0:09:18.2]} 15. e5 {[%clk 0:07:11.9]}
15... Nfe8 {[%clk 0:09:01.6]} 16. exd6 {[%clk 0:07:04]} 16... Nxd6 {[%clk
0:08:54.5]} 17. b4 {[%clk 0:06:50.2]} 17... Bf5 {[%clk 0:07:00.7]} 18. Bd3
{[%clk 0:06:27.8]} 18... Qd7 {[%clk 0:07:01.6]} 19. Rab1 {[%clk 0:06:07.9]}
19... Rfc8 {[%clk 0:05:25.5]} 20. a5 {[%clk 0:05:27.2]} 20... Nce8 {[%clk
0:05:08.7]} 21. axb6 {[%clk 0:05:19.8]} 21... Rxb6 {[%clk 0:05:09.2]} 22. Be3
{[%clk 0:04:49.1]} 22... cxb4 {[%clk 0:04:34.8]} 23. Nxb4 {[%clk 0:04:44.3]}
23... Nxc4 {[%clk 0:04:29.5]} 24. Bxc4 {[%clk 0:04:38.9]} 24... Rxc4 {[%clk
0:04:25.5]} 25. Bxb6 {[%clk 0:03:27.4]} 25... Bxc3 {[%clk 0:04:23.2]} 26. Qe2
{[%clk 0:02:40.9]} 26... Rxb4 {[%clk 0:04:21.6]} 27. Rxb4 {[%clk 0:02:41.5]}
27... Bxb4 {[%clk 0:04:22.4]} 28. Qxa6 {[%clk 0:02:41.9]} 28... Qxd5 {[%clk
0:04:17.8]} 29. Qa4 {[%clk 0:02:38.6]} 29... Bd6 {[%clk 0:02:14]} 30. Qxe8+
{[%clk 0:02:35.2]} 30... Kg7 {[%clk 0:02:15]} 31. Qa4 {[%clk 0:02:26.2]} 31...
f6 {[%clk 0:02:15]} 32. Qd4 {[%clk 0:02:13.7]} 32... Qc6 {[%clk 0:02:04]} 33.
Qe3 {[%clk 0:02:11]} 33... Qd5 {[%clk 0:01:46.2]} 34. Rc1 {[%clk 0:02:04.5]}
34... Kf7 {[%clk 0:01:27]} 35. Qd4 {[%clk 0:01:49.8]} 35... Qb7 {[%clk
0:01:22.5]} 36. Bc5 {[%clk 0:01:41.8]} 36... Be5 {[%clk 0:01:21.5]} 37. Qb4
{[%clk 0:01:38.7]} 37... Qd7 {[%clk 0:01:13.5]} 38. Qb3+ {[%clk 0:01:26.9]}
38... Be6 {[%clk 0:01:11.9]} 39. Qe3 {[%clk 0:01:26.6]} 39... g5 {[%clk
0:01:04.7]} 40. Qe2 {[%clk 0:01:19.1]} 1/2-1/2

[Event "GrandPrix_30.05"]
[Site "Chess.com"]
[Date "2020.05.30"]
[Round "5"]
[White "Glek_Igor"]
[Black "viktorskliarov"]
[Result "1-0"]
[WhiteElo "2458"]
[BlackElo "2234"]
[TimeControl "600+2"]
[EndTime "10:24:52 PDT"]
[Termination "Glek_Igor won by resignation"]

1. e4 {[%clk 0:10:01.9]} 1... c5 {[%clk 0:09:56.7]} 2. Nf3 {[%clk 0:10:02]} 2...
Nc6 {[%clk 0:09:57.6]} 3. Bb5 {[%clk 0:10:02.4]} 3... e6 {[%clk 0:09:58.7]} 4.
O-O {[%clk 0:10:02.3]} 4... Nge7 {[%clk 0:09:59.4]} 5. Re1 {[%clk 0:10:03.9]}
5... Nd4 {[%clk 0:09:57.6]} 6. Nxd4 {[%clk 0:10:03.8]} 6... cxd4 {[%clk
0:09:58.4]} 7. c4 {[%clk 0:10:05.2]} 7... Ng6 {[%clk 0:09:14.3]} 8. d3 {[%clk
0:10:03.7]} 8... Bd6 {[%clk 0:08:44.8]} 9. g3 {[%clk 0:09:24]} 9... h5 {[%clk
0:08:12]} 10. f4 {[%clk 0:09:21.4]} 10... h4 {[%clk 0:08:00]} 11. e5 {[%clk
0:09:09.9]} 11... hxg3 {[%clk 0:06:57.6]} 12. hxg3 {[%clk 0:09:09.4]} 12... Bc5
{[%clk 0:06:47.9]} 13. Nd2 {[%clk 0:07:31.6]} 13... a6 {[%clk 0:06:45]} 14. Ba4
{[%clk 0:07:09.1]} 14... b5 {[%clk 0:04:57.1]} 15. cxb5 {[%clk 0:06:25]} 15...
Nxf4 {[%clk 0:04:16.8]} 16. Ne4 {[%clk 0:06:21.7]} 16... Nh3+ {[%clk 0:04:06.6]}
17. Kg2 {[%clk 0:06:22.8]} 17... Bb7 {[%clk 0:03:04.8]} 18. Rh1 {[%clk
0:06:00.9]} 18... axb5 {[%clk 0:01:14.4]} 19. Bxb5 {[%clk 0:05:59.5]} 19... Qa5
{[%clk 0:01:13.9]} 20. a4 {[%clk 0:05:53.9]} 20... f5 {[%clk 0:00:44.5]} 21.
exf6 {[%clk 0:05:50.6]} 21... gxf6 {[%clk 0:00:37.8]} 22. Rxh3 {[%clk
0:05:50.1]} 22... Ke7 {[%clk 0:00:38.6]} 23. Bd2 {[%clk 0:04:54.1]} 23... Bb4
{[%clk 0:00:30.2]} 24. Rxh8 {[%clk 0:04:15.9]} 24... Rxh8 {[%clk 0:00:29.7]} 25.
Qg4 {[%clk 0:04:09.3]} 25... Rh7 {[%clk 0:00:04.2]} 26. Qg6 {[%clk 0:03:35.5]}
26... Rf7 {[%clk 0:00:03.9]} 27. Bf4 {[%clk 0:03:03.6]} 27... Qa8 {[%clk
0:00:03.3]} 28. Rh1 {[%clk 0:02:42.3]} 28... Qf8 {[%clk 0:00:03.4]} 29. Rh7
{[%clk 0:02:36.7]} 29... Rxh7 {[%clk 0:00:04.2]} 30. Qxh7+ {[%clk 0:02:37]}
30... Qf7 {[%clk 0:00:04.7]} 31. Qxf7+ {[%clk 0:02:33.2]} 31... Kxf7 {[%clk
0:00:05.9]} 32. Kf2 {[%clk 0:02:28.9]} 32... e5 {[%clk 0:00:07.1]} 33. Bd2
{[%clk 0:02:25.6]} 33... Be7 {[%clk 0:00:08.3]} 34. b4 {[%clk 0:02:14.5]} 34...
d5 {[%clk 0:00:08.9]} 35. Nc5 {[%clk 0:02:15.4]} 35... Ba8 {[%clk 0:00:09.9]}
36. a5 {[%clk 0:02:04.1]} 36... e4 {[%clk 0:00:11]} 37. Bf4 {[%clk 0:02:04.2]}
37... e3+ {[%clk 0:00:11.3]} 38. Ke2 {[%clk 0:02:03.4]} 1-0

[Event "GrandPrix_30.05"]
[Site "Chess.com"]
[Date "2020.05.30"]
[Round "5"]
[White "TheEternalPatzer"]
[Black "lelajavakhishvili"]
[Result "1-0"]
[WhiteElo "2068"]
[BlackElo "2098"]
[TimeControl "600+2"]
[EndTime "10:24:56 PDT"]
[Termination "TheEternalPatzer won by resignation"]

1. c4 {[%clk 0:09:17.3]} 1... c5 {[%clk 0:09:54]} 2. Nf3 {[%clk 0:09:16.1]} 2...
Nc6 {[%clk 0:09:53.6]} 3. Nc3 {[%clk 0:09:16.2]} 3... g6 {[%clk 0:09:52.6]} 4.
e3 {[%clk 0:09:04.3]} 4... Bg7 {[%clk 0:09:51.6]} 5. d4 {[%clk 0:09:04.4]} 5...
d6 {[%clk 0:09:52.6]} 6. Be2 {[%clk 0:08:52]} 6... Nh6 {[%clk 0:09:25.7]} 7. d5
{[%clk 0:08:39.9]} 7... Na5 {[%clk 0:09:01.5]} 8. e4 {[%clk 0:08:21.8]} 8... O-O
{[%clk 0:08:57.8]} 9. O-O {[%clk 0:08:21.3]} 9... a6 {[%clk 0:08:52]} 10. Re1
{[%clk 0:08:02.1]} 10... Bd7 {[%clk 0:08:49.2]} 11. Bg5 {[%clk 0:07:48.1]} 11...
b5 {[%clk 0:08:08.6]} 12. Qd2 {[%clk 0:07:33.2]} 12... Ng4 {[%clk 0:08:07.9]}
13. h3 {[%clk 0:07:30.1]} 13... Ne5 {[%clk 0:08:08.2]} 14. Nxe5 {[%clk 0:07:23]}
14... Bxe5 {[%clk 0:08:09]} 15. f4 {[%clk 0:05:42.3]} 15... Bd4+ {[%clk
0:08:05.1]} 16. Kh1 {[%clk 0:05:42.4]} 16... Nxc4 {[%clk 0:08:02.6]} 17. Bxc4
{[%clk 0:05:41.3]} 17... bxc4 {[%clk 0:08:03.8]} 18. e5 {[%clk 0:05:20.8]} 18...
dxe5 {[%clk 0:08:02.6]} 19. fxe5 {[%clk 0:05:18.6]} 19... Bf5 {[%clk 0:08:01]}
20. d6 {[%clk 0:05:11.7]} 20... Qd7 {[%clk 0:07:38.5]} 21. Nd5 {[%clk
0:05:02.8]} 21... f6 {[%clk 0:07:22.3]} 22. Nxe7+ {[%clk 0:04:31.4]} 22... Kh8
{[%clk 0:07:11.6]} 23. Bxf6+ {[%clk 0:04:22.7]} 23... Rxf6 {[%clk 0:07:09.6]}
24. exf6 {[%clk 0:04:24.6]} 24... Qxd6 {[%clk 0:06:33.5]} 25. Nxf5 {[%clk
0:04:18.7]} 25... gxf5 {[%clk 0:06:34.1]} 26. f7 {[%clk 0:04:10.4]} 26... Rf8
{[%clk 0:06:29.1]} 27. Re8 {[%clk 0:04:04.8]} 27... Kg7 {[%clk 0:06:03]} 28.
Qg5+ {[%clk 0:03:59.5]} 28... Qg6 {[%clk 0:06:03.4]} 29. Qxg6+ {[%clk
0:03:54.7]} 29... hxg6 {[%clk 0:06:04.1]} 30. Rxf8 {[%clk 0:03:52.7]} 30... Kxf8
{[%clk 0:06:05.1]} 31. Rc1 {[%clk 0:03:52.1]} 31... Bxb2 {[%clk 0:06:04.1]} 32.
Rxc4 {[%clk 0:03:50.3]} 32... Bd4 {[%clk 0:06:03.8]} 33. Ra4 {[%clk 0:03:46.5]}
33... Kxf7 {[%clk 0:06:04.6]} 34. Rxa6 {[%clk 0:03:43.1]} 34... f4 {[%clk
0:05:56.6]} 35. g3 {[%clk 0:03:07.3]} 35... fxg3 {[%clk 0:05:27.3]} 36. Kg2
{[%clk 0:03:04.4]} 36... Bf2 {[%clk 0:05:27.9]} 37. Rc6 {[%clk 0:02:53.4]} 37...
g5 {[%clk 0:05:19]} 38. a4 {[%clk 0:02:53.1]} 38... Ke7 {[%clk 0:05:20.2]} 39.
Rg6 {[%clk 0:02:41.1]} 39... Be3 {[%clk 0:05:05.5]} 40. Kxg3 {[%clk 0:02:24.2]}
40... Kd7 {[%clk 0:05:05.9]} 41. Kf3 {[%clk 0:02:23.6]} 41... Bf4 {[%clk
0:04:55.6]} 42. Ke4 {[%clk 0:02:21.9]} 42... Kc7 {[%clk 0:04:48.7]} 43. Kd5
{[%clk 0:02:18.4]} 43... Be3 {[%clk 0:04:47]} 44. Kc4 {[%clk 0:02:09.5]} 44...
Kb7 {[%clk 0:04:39.1]} 45. Kb5 {[%clk 0:02:09.7]} 45... Kc7 {[%clk 0:04:29]} 46.
a5 {[%clk 0:02:08]} 46... Kb8 {[%clk 0:04:28]} 47. Rc6 {[%clk 0:02:02]} 47...
Kb7 {[%clk 0:04:26.6]} 48. a6+ {[%clk 0:02:01.6]} 48... Ka7 {[%clk 0:04:26.8]}
49. Rc7+ {[%clk 0:01:55.9]} 49... Ka8 {[%clk 0:04:22.9]} 50. Re7 {[%clk
0:01:55.1]} 50... Bd4 {[%clk 0:04:19.3]} 51. Rc7 {[%clk 0:01:38.9]} 51... Be3
{[%clk 0:04:13.8]} 52. Kb6 {[%clk 0:01:30.6]} 52... c4+ {[%clk 0:04:12.4]} 53.
Kb5 {[%clk 0:01:30]} 53... Bf4 {[%clk 0:03:56.5]} 54. Rxc4 {[%clk 0:01:28.4]}
54... Bb8 {[%clk 0:03:57.1]} 55. Rc6 {[%clk 0:01:29.8]} 55... Bf4 {[%clk
0:03:57.3]} 56. Kc4 {[%clk 0:01:29.5]} 56... Ka7 {[%clk 0:03:56.5]} 57. Kd5
{[%clk 0:01:29.8]} 57... Be3 {[%clk 0:03:55.8]} 58. Ke4 {[%clk 0:01:29.9]} 58...
Bb6 {[%clk 0:03:57.1]} 59. Kd3 {[%clk 0:01:28.7]} 59... Kxa6 {[%clk 0:03:57]}
60. Ke4 {[%clk 0:01:29.4]} 60... Kb7 {[%clk 0:03:57.5]} 61. Rc4 {[%clk
0:01:27.6]} 61... Ba5 {[%clk 0:03:54.3]} 62. Kd5 {[%clk 0:01:27.9]} 62... Bd2
{[%clk 0:03:53.6]} 63. Rc2 {[%clk 0:01:26.2]} 63... Be1 {[%clk 0:03:47.1]} 64.
Kd6 {[%clk 0:01:23.7]} 64... Bg3+ {[%clk 0:03:46.1]} 65. Kd7 {[%clk 0:01:23.5]}
65... Kb6 {[%clk 0:03:46]} 66. Ke6 {[%clk 0:01:22.2]} 66... Kb5 {[%clk
0:03:40.4]} 67. Kf5 {[%clk 0:01:21.8]} 67... Bh4 {[%clk 0:03:40.8]} 68. Rg2
{[%clk 0:01:18.7]} 68... Kc6 {[%clk 0:03:41.2]} 69. Rxg5 {[%clk 0:01:14.4]}
69... Bxg5 {[%clk 0:03:40.7]} 70. Kxg5 {[%clk 0:01:15.1]} 70... Kd6 {[%clk
0:03:41.6]} 71. Kf6 {[%clk 0:01:15.2]} 71... Kd7 {[%clk 0:03:39.8]} 72. Kf7
{[%clk 0:01:13.7]} 72... Kd6 {[%clk 0:03:41]} 73. h4 {[%clk 0:01:08.5]} 73...
Ke5 {[%clk 0:03:41.9]} 74. h5 {[%clk 0:01:07.2]} 1-0